[Event "Titled Tuesday Blitz July 13 2021"]
[White "shnitez"]
[Black "Adelman, Charles"]
[BlackFideId "2003597"]
[WhiteElo "2452"]
[BlackElo "2325"]
[Result "1/2-1/2"]
[Round "10"]
[TimeControl "180+1"]
[Date "2021.07.13"]
[WhiteClock "0:00:04"]
[BlackClock "0:00:04"]

1. d4 {[%clk 0:03:00]}  Nf6 {[%clk 0:02:59]} 2. c4 {[%clk 0:03:00]}  e6 {[%clk 0:02:59]} 3. Nf3 {[%clk 0:02:58]}  c5 {[%clk 0:02:59]} 4. Nc3 {[%clk 0:02:55]}  b6 {[%clk 0:02:58]} 5. d5 {[%clk 0:02:54]}  exd5 {[%clk 0:02:58]} 6. cxd5 {[%clk 0:02:55]}  d6 {[%clk 0:02:58]} 7. e4 {[%clk 0:02:54]}  g6 {[%clk 0:02:56]} 8. a4 {[%clk 0:02:49]}  Bg7 {[%clk 0:02:52]} 9. Bb5+ {[%clk 0:02:45]}  Nbd7 {[%clk 0:02:50]} 10. O-O {[%clk 0:02:37]}  O-O {[%clk 0:02:50]} 11. Bf4 {[%clk 0:02:33]}  Ne8 {[%clk 0:02:46]} 12. a5 {[%clk 0:02:28]}  a6 {[%clk 0:02:38]} 13. Bc6 {[%clk 0:02:28]}  Rb8 {[%clk 0:02:36]} 14. axb6 {[%clk 0:02:27]}  Rxb6 {[%clk 0:02:35]} 15. Ra2 {[%clk 0:02:15]}  Qe7 {[%clk 0:02:30]} 16. Re1 {[%clk 0:02:13]}  Ne5 {[%clk 0:02:28]} 17. Nxe5 {[%clk 0:01:41]}  Bxe5 {[%clk 0:02:27]} 18. Bxe5 {[%clk 0:01:39]}  Qxe5 {[%clk 0:02:27]} 19. Qd2 {[%clk 0:01:36]}  Nc7 {[%clk 0:02:25]} 20. f4 {[%clk 0:01:31]}  Qd4+ {[%clk 0:02:19]} 21. Qxd4 {[%clk 0:01:31]}  cxd4 {[%clk 0:02:20]} 22. Ne2 {[%clk 0:01:27]}  d3 {[%clk 0:02:04]} 23. Nc3 {[%clk 0:01:20]}  Bb7 {[%clk 0:02:01]} 24. Bxb7 {[%clk 0:01:15]}  Rxb7 {[%clk 0:02:01]} 25. Kf2 {[%clk 0:01:10]}  Rfb8 {[%clk 0:02:00]} 26. Na4 {[%clk 0:01:03]}  Rb4 {[%clk 0:01:59]} 27. Ke3 {[%clk 0:01:00]}  f5 {[%clk 0:01:40]} 28. Kxd3 {[%clk 0:00:49]}  fxe4+ {[%clk 0:01:39]} 29. Rxe4 {[%clk 0:00:50]}  Nxd5 {[%clk 0:01:38]} 30. g3 {[%clk 0:00:43]}  R4b7 {[%clk 0:01:26]} 31. Ra3 {[%clk 0:00:36]}  Nb4+ {[%clk 0:01:22]} 32. Kd2 {[%clk 0:00:31]}  Rc7 {[%clk 0:01:19]} 33. Nc3 {[%clk 0:00:30]}  d5 {[%clk 0:01:16]} 34. Rd4 {[%clk 0:00:30]}  Nc6 {[%clk 0:01:08]} 35. Rxd5 {[%clk 0:00:26]}  Rxb2+ {[%clk 0:01:06]} 36. Kc1 {[%clk 0:00:22]}  Rxh2 {[%clk 0:01:03]} 37. Rc5 {[%clk 0:00:20]}  Rc8 {[%clk 0:00:45]} 38. Rxa6 {[%clk 0:00:15]}  Rh1+ {[%clk 0:00:41]} 39. Nd1 {[%clk 0:00:14]}  Rg1 {[%clk 0:00:34]} 40. Raxc6 {[%clk 0:00:12]}  Rxc6 {[%clk 0:00:33]} 41. Rxc6 {[%clk 0:00:13]}  Rxg3 {[%clk 0:00:33]} 42. Rc4 {[%clk 0:00:13]}  h5 {[%clk 0:00:32]} 43. Kd2 {[%clk 0:00:13]}  h4 {[%clk 0:00:32]} 44. Ke2 {[%clk 0:00:12]}  h3 {[%clk 0:00:32]} 45. Nf2 {[%clk 0:00:12]}  h2 {[%clk 0:00:29]} 46. Rc7 {[%clk 0:00:05]}  Rg1 {[%clk 0:00:25]} 47. Rb7 {[%clk 0:00:02]}  h1=Q {[%clk 0:00:23]} 48. Nxh1 {[%clk 0:00:02]}  Rxh1 {[%clk 0:00:23]} 49. Kf3 {[%clk 0:00:02]}  Rg1 {[%clk 0:00:21]} 50. Ke4 {[%clk 0:00:02]}  Re1+ {[%clk 0:00:21]} 51. Kf3 {[%clk 0:00:01]}  Kf8 {[%clk 0:00:20]} 52. Kg4 {[%clk 0:00:01]}  Kg8 {[%clk 0:00:20]} 53. Kg5 {[%clk 0:00:02]}  Rf1 {[%clk 0:00:17]} 54. Kxg6 {[%clk 0:00:02]}  Rg1+ {[%clk 0:00:17]} 55. Kf6 {[%clk 0:00:02]}  Rf1 {[%clk 0:00:17]} 56. f5 {[%clk 0:00:02]}  Rf2 {[%clk 0:00:15]} 57. Rb8+ {[%clk 0:00:01]}  Kh7 {[%clk 0:00:14]} 58. Rb5 {[%clk 0:00:02]}  Kg8 {[%clk 0:00:13]} 59. Rc5 {[%clk 0:00:02]}  Rf1 {[%clk 0:00:11]} 60. Ra5 {[%clk 0:00:02]}  Rf2 {[%clk 0:00:11]} 61. Kg6 {[%clk 0:00:01]}  Rg2+ {[%clk 0:00:11]} 62. Kf6 {[%clk 0:00:02]}  Rf2 {[%clk 0:00:11]} 63. Ra8+ {[%clk 0:00:03]}  Kh7 {[%clk 0:00:11]} 64. Rf8 {[%clk 0:00:02]}  Rf1 {[%clk 0:00:10]} 65. Rf7+ {[%clk 0:00:01]}  Kg8 {[%clk 0:00:09]} 66. Rb7 {[%clk 0:00:02]}  Rf2 {[%clk 0:00:08]} 67. Rc7 {[%clk 0:00:03]}  Rf1 {[%clk 0:00:08]} 68. Rd7 {[%clk 0:00:03]}  Rf2 {[%clk 0:00:08]} 69. Rd5 {[%clk 0:00:03]}  Rf1 {[%clk 0:00:08]} 70. Ke7 {[%clk 0:00:03]}  Re1+ {[%clk 0:00:07]} 71. Kf6 {[%clk 0:00:03]}  Rf1 {[%clk 0:00:07]} 72. Re5 {[%clk 0:00:03]}  Rf2 {[%clk 0:00:07]} 73. Ke7 {[%clk 0:00:03]}  Kg7 {[%clk 0:00:05]} 74. Rd5 {[%clk 0:00:03]}  Re2+ {[%clk 0:00:05]} 75. Kd6 {[%clk 0:00:03]}  Kf6 {[%clk 0:00:05]} 76. Kc5 {[%clk 0:00:03]}  Rf2 {[%clk 0:00:04]} 77. Kd6 {[%clk 0:00:03]}  Rxf5 {[%clk 0:00:05]} 78. Rxf5+ {[%clk 0:00:04]}  Kxf5 {[%clk 0:00:04]} 1/2-1/2


[Site "https://www.chess.com"]

[Event "Titled Tuesday Blitz July 13 2021"]
[White "AleksanderHnydiuk"]
[Black "Elgersma, Onno"]
[BlackFideId "1053531"]
[WhiteElo "2606"]
[BlackElo "2457"]
[Result "1-0"]
[Round "11"]
[TimeControl "180+1"]
[Date "2021.07.13"]
[WhiteClock "0:00:52"]
[BlackClock "0:00:03"]

1. d4 {[%clk 0:03:00]}  d5 {[%clk 0:02:59]} 2. c4 {[%clk 0:03:00]}  e6 {[%clk 0:02:59]} 3. Nf3 {[%clk 0:03:00]}  Nf6 {[%clk 0:02:59]} 4. g3 {[%clk 0:02:59]}  Be7 {[%clk 0:02:59]} 5. Bg2 {[%clk 0:02:59]}  O-O {[%clk 0:03:00]} 6. Qc2 {[%clk 0:03:00]}  c5 {[%clk 0:02:59]} 7. O-O {[%clk 0:02:59]}  cxd4 {[%clk 0:02:59]} 8. Nxd4 {[%clk 0:03:00]}  Nc6 {[%clk 0:02:59]} 9. Nxc6 {[%clk 0:03:00]}  bxc6 {[%clk 0:03:00]} 10. Nd2 {[%clk 0:02:59]}  a5 {[%clk 0:02:58]} 11. b3 {[%clk 0:02:50]}  a4 {[%clk 0:02:58]} 12. Bb2 {[%clk 0:02:50]}  Nd7 {[%clk 0:02:49]} 13. e4 {[%clk 0:02:48]}  Bf6 {[%clk 0:02:48]} 14. exd5 {[%clk 0:02:41]}  cxd5 {[%clk 0:02:16]} 15. cxd5 {[%clk 0:02:42]}  exd5 {[%clk 0:02:17]} 16. Bxd5 {[%clk 0:02:40]}  axb3 {[%clk 0:02:14]} 17. axb3 {[%clk 0:02:32]}  Rxa1 {[%clk 0:02:14]} 18. Rxa1 {[%clk 0:02:32]}  Ne5 {[%clk 0:02:14]} 19. Bg2 {[%clk 0:02:25]}  Ng4 {[%clk 0:01:34]} 20. h3 {[%clk 0:02:01]}  Bf5 {[%clk 0:00:57]} 21. Ne4 {[%clk 0:01:59]}  Bxe4 {[%clk 0:00:41]} 22. Bxe4 {[%clk 0:01:56]}  Bxb2 {[%clk 0:00:41]} 23. Qxb2 {[%clk 0:01:54]}  Nf6 {[%clk 0:00:41]} 24. Bg2 {[%clk 0:01:49]}  Qb6 {[%clk 0:00:41]} 25. b4 {[%clk 0:01:31]}  Rb8 {[%clk 0:00:40]} 26. b5 {[%clk 0:01:32]}  h6 {[%clk 0:00:38]} 27. Bf1 {[%clk 0:01:26]}  Ne4 {[%clk 0:00:31]} 28. Ra3 {[%clk 0:01:16]}  Rd8 {[%clk 0:00:17]} 29. Rd3 {[%clk 0:00:56]}  Rxd3 {[%clk 0:00:16]} 30. Bxd3 {[%clk 0:00:57]}  Nxg3 {[%clk 0:00:16]} 31. Qe5 {[%clk 0:00:55]}  g6 {[%clk 0:00:03]} 32. Qxg3 {[%clk 0:00:52]} 1-0


[Site "https://www.chess.com"]

[Event "Titled Tuesday Blitz July 13 2021"]
[White "Ambartsumova, Karina"]
[Black "Buscar, Michael"]
[WhiteFideId "4166299"]
[BlackFideId "2603616"]
[WhiteElo "2262"]
[BlackElo "2010"]
[Result "0-1"]
[Round "11"]
[TimeControl "180+1"]
[Date "2021.07.13"]
[WhiteClock "0:00:17"]
[BlackClock "0:00:21"]

1. e4 {[%clk 0:03:00]}  c5 {[%clk 0:02:59]} 2. Nf3 {[%clk 0:03:00]}  Nc6 {[%clk 0:02:59]} 3. d4 {[%clk 0:03:00]}  cxd4 {[%clk 0:03:00]} 4. Nxd4 {[%clk 0:03:01]}  Nf6 {[%clk 0:02:59]} 5. Nc3 {[%clk 0:03:00]}  e5 {[%clk 0:03:00]} 6. Ndb5 {[%clk 0:02:55]}  h6 {[%clk 0:03:00]} 7. Nd6+ {[%clk 0:02:51]}  Bxd6 {[%clk 0:02:59]} 8. Qxd6 {[%clk 0:02:52]}  Qe7 {[%clk 0:03:00]} 9. Qd2 {[%clk 0:02:52]}  O-O {[%clk 0:03:00]} 10. b3 {[%clk 0:02:53]}  Rd8 {[%clk 0:02:56]} 11. Bb2 {[%clk 0:02:52]}  d5 {[%clk 0:02:38]} 12. exd5 {[%clk 0:02:47]}  Nb4 {[%clk 0:02:37]} 13. Bc4 {[%clk 0:02:30]}  Bf5 {[%clk 0:02:36]} 14. O-O {[%clk 0:02:22]}  Nxc2 {[%clk 0:02:34]} 15. Rad1 {[%clk 0:02:18]}  Nd4 {[%clk 0:02:34]} 16. Rfe1 {[%clk 0:02:12]}  Qd6 {[%clk 0:02:09]} 17. f4 {[%clk 0:02:04]}  Qc5 {[%clk 0:01:58]} 18. Kh1 {[%clk 0:02:00]}  Nc2 {[%clk 0:01:55]} 19. Rxe5 {[%clk 0:01:49]}  Ng4 {[%clk 0:01:52]} 20. Re2 {[%clk 0:01:38]}  Re8 {[%clk 0:01:38]} 21. Na4 {[%clk 0:01:00]}  Qd6 {[%clk 0:00:42]} 22. Rf1 {[%clk 0:00:46]}  Nce3 {[%clk 0:00:34]} 23. Rf3 {[%clk 0:00:42]}  Be4 {[%clk 0:00:21]} 24. Rfxe3 {[%clk 0:00:24]}  Qxf4 {[%clk 0:00:21]} 25. Rf3 {[%clk 0:00:17]}  Qxh2# {[%clk 0:00:21]} 0-1


[Site "https://www.chess.com"]

[Event "Titled Tuesday Blitz July 13 2021"]
[White "Aradhya, Garg"]
[Black "Kubatko, Ivan"]
[WhiteFideId "25006746"]
[BlackFideId "24111473"]
[WhiteElo "2146"]
[BlackElo "2285"]
[Result "1-0"]
[Round "11"]
[TimeControl "180+1"]
[Date "2021.07.13"]
[WhiteClock "0:01:49"]
[BlackClock "0:00:31"]

1. d4 {[%clk 0:02:55]}  d5 {[%clk 0:02:59]} 2. c4 {[%clk 0:02:55]}  e6 {[%clk 0:02:59]} 3. Nc3 {[%clk 0:02:55]}  c5 {[%clk 0:02:59]} 4. e3 {[%clk 0:02:54]}  Nf6 {[%clk 0:02:59]} 5. Nf3 {[%clk 0:02:53]}  a6 {[%clk 0:02:59]} 6. a3 {[%clk 0:02:53]}  dxc4 {[%clk 0:02:59]} 7. Bxc4 {[%clk 0:02:52]}  b5 {[%clk 0:03:00]} 8. Bd3 {[%clk 0:02:50]}  Bb7 {[%clk 0:02:59]} 9. O-O {[%clk 0:02:50]}  Nbd7 {[%clk 0:02:46]} 10. Qe2 {[%clk 0:02:49]}  Qb6 {[%clk 0:02:45]} 11. Rd1 {[%clk 0:02:49]}  Be7 {[%clk 0:02:44]} 12. Ne5 {[%clk 0:02:42]}  Nxe5 {[%clk 0:02:40]} 13. dxe5 {[%clk 0:02:42]}  Nd7 {[%clk 0:02:40]} 14. Qg4 {[%clk 0:02:39]}  Nxe5 {[%clk 0:02:28]} 15. Qxg7 {[%clk 0:02:38]}  O-O-O {[%clk 0:02:26]} 16. Qxe5 {[%clk 0:02:38]}  Qc6 {[%clk 0:01:09]} 17. Bf1 {[%clk 0:02:34]}  Rhg8 {[%clk 0:01:03]} 18. Rxd8+ {[%clk 0:02:30]}  Bxd8 {[%clk 0:01:04]} 19. e4 {[%clk 0:02:29]}  Bc7 {[%clk 0:01:00]} 20. Qh5 {[%clk 0:02:28]}  b4 {[%clk 0:00:45]} 21. Qxf7 {[%clk 0:02:14]}  Rg6 {[%clk 0:00:45]} 22. axb4 {[%clk 0:02:05]}  cxb4 {[%clk 0:00:45]} 23. Qf8+ {[%clk 0:01:58]}  Bd8 {[%clk 0:00:44]} 24. Ne2 {[%clk 0:01:57]}  Qxe4 {[%clk 0:00:38]} 25. Ng3 {[%clk 0:01:56]}  Qe1 {[%clk 0:00:31]} 26. Bg5 {[%clk 0:01:49]} 1-0


[Site "https://www.chess.com"]

[Event "Titled Tuesday Blitz July 13 2021"]
[White "Araujo Filho, Luiz Antonio Coel"]
[Black "Shuvalov, Evgenij"]
[WhiteFideId "2130661"]
[BlackFideId "4187237"]
[WhiteElo "2259"]
[BlackElo "2163"]
[Result "0-1"]
[Round "11"]
[TimeControl "180+1"]
[Date "2021.07.13"]
[WhiteClock "0:00:13"]
[BlackClock "0:00:37"]

1. d4 {[%clk 0:03:00]}  Nf6 {[%clk 0:02:59]} 2. Nf3 {[%clk 0:03:01]}  g6 {[%clk 0:02:58]} 3. c4 {[%clk 0:03:00]}  Bg7 {[%clk 0:02:57]} 4. Nc3 {[%clk 0:03:01]}  d5 {[%clk 0:02:57]} 5. cxd5 {[%clk 0:03:02]}  Nxd5 {[%clk 0:02:58]} 6. e4 {[%clk 0:03:03]}  Nxc3 {[%clk 0:02:58]} 7. bxc3 {[%clk 0:03:04]}  c5 {[%clk 0:02:58]} 8. Be2 {[%clk 0:03:04]}  cxd4 {[%clk 0:02:54]} 9. cxd4 {[%clk 0:03:03]}  Nc6 {[%clk 0:02:54]} 10. Be3 {[%clk 0:03:03]}  Qa5+ {[%clk 0:02:50]} 11. Kf1 {[%clk 0:03:02]}  O-O {[%clk 0:02:47]} 12. Qb3 {[%clk 0:02:26]}  Bg4 {[%clk 0:02:22]} 13. Qxb7 {[%clk 0:02:15]}  Bxf3 {[%clk 0:02:21]} 14. Qxc6 {[%clk 0:02:14]}  Bxe2+ {[%clk 0:02:09]} 15. Kxe2 {[%clk 0:02:13]}  Rac8 {[%clk 0:02:10]} 16. Qd7 {[%clk 0:02:06]}  Rc2+ {[%clk 0:02:00]} 17. Kf3 {[%clk 0:02:05]}  f5 {[%clk 0:01:42]} 18. Qd5+ {[%clk 0:01:25]}  Qxd5 {[%clk 0:01:42]} 19. exd5 {[%clk 0:01:26]}  f4 {[%clk 0:01:42]} 20. Bc1 {[%clk 0:01:22]}  Bxd4 {[%clk 0:01:40]} 21. Rb1 {[%clk 0:01:21]}  Rxf2+ {[%clk 0:01:25]} 22. Kg4 {[%clk 0:01:18]}  Rxg2+ {[%clk 0:01:19]} 23. Kh3 {[%clk 0:01:18]}  Rxa2 {[%clk 0:01:14]} 24. Rb7 {[%clk 0:01:14]}  Bc5 {[%clk 0:01:10]} 25. Rf1 {[%clk 0:01:07]}  g5 {[%clk 0:01:10]} 26. Rc7 {[%clk 0:00:56]}  Bd6 {[%clk 0:01:02]} 27. Rb7 {[%clk 0:00:52]}  f3 {[%clk 0:01:00]} 28. Bxg5 {[%clk 0:00:46]}  Rxh2+ {[%clk 0:00:56]} 29. Kg4 {[%clk 0:00:46]}  Rg2+ {[%clk 0:00:56]} 30. Kh4 {[%clk 0:00:41]}  Rf7 {[%clk 0:00:46]} 31. Rxa7 {[%clk 0:00:36]}  Rg7 {[%clk 0:00:44]} 32. Rxf3 {[%clk 0:00:27]}  h6 {[%clk 0:00:39]} 33. Bxh6 {[%clk 0:00:18]}  Rh2+ {[%clk 0:00:36]} 34. Rh3 {[%clk 0:00:18]}  Bg3+ {[%clk 0:00:36]} 35. Kh5 {[%clk 0:00:13]}  Rxh3# {[%clk 0:00:37]} 0-1


[Site "https://www.chess.com"]

[Event "Titled Tuesday Blitz July 13 2021"]
[White "Begunov, Konstantin"]
[Black "parintele_chess"]
[WhiteFideId "4118510"]
[WhiteElo "2262"]
[BlackElo "2220"]
[Result "0-1"]
[Round "11"]
[TimeControl "180+1"]
[Date "2021.07.13"]
[WhiteClock "0:00:08"]
[BlackClock "0:00:35"]

1. d4 {[%clk 0:02:49]}  Nf6 {[%clk 0:02:59]} 2. c4 {[%clk 0:02:49]}  g6 {[%clk 0:03:00]} 3. f3 {[%clk 0:02:49]}  c5 {[%clk 0:02:56]} 4. dxc5 {[%clk 0:02:48]}  Bg7 {[%clk 0:02:52]} 5. e4 {[%clk 0:02:48]}  Nc6 {[%clk 0:02:51]} 6. Nc3 {[%clk 0:02:48]}  O-O {[%clk 0:02:49]} 7. Be3 {[%clk 0:02:47]}  Ne8 {[%clk 0:02:32]} 8. Nge2 {[%clk 0:02:43]}  Nc7 {[%clk 0:02:31]} 9. a3 {[%clk 0:02:42]}  a5 {[%clk 0:02:28]} 10. Qd2 {[%clk 0:02:38]}  Ne6 {[%clk 0:02:23]} 11. Nd5 {[%clk 0:02:34]}  f5 {[%clk 0:02:16]} 12. exf5 {[%clk 0:02:21]}  Rxf5 {[%clk 0:02:16]} 13. Rd1 {[%clk 0:01:55]}  d6 {[%clk 0:02:01]} 14. Ng3 {[%clk 0:01:51]}  Re5 {[%clk 0:01:58]} 15. f4 {[%clk 0:01:46]}  Rxe3+ {[%clk 0:01:38]} 16. Qxe3 {[%clk 0:01:27]}  Bxb2 {[%clk 0:01:21]} 17. Nb6 {[%clk 0:01:14]}  Bd4 {[%clk 0:01:11]} 18. Qe4 {[%clk 0:00:43]}  Nxc5 {[%clk 0:01:09]} 19. Qd5+ {[%clk 0:00:31]}  Be6 {[%clk 0:01:05]} 20. Nxa8 {[%clk 0:00:19]}  Bxd5 {[%clk 0:01:04]} 21. cxd5 {[%clk 0:00:20]}  Bc3+ {[%clk 0:01:00]} 22. Kf2 {[%clk 0:00:20]}  Nd4 {[%clk 0:00:55]} 23. Bc4 {[%clk 0:00:18]}  Qxa8 {[%clk 0:00:53]} 24. Ne2 {[%clk 0:00:16]}  Nxe2 {[%clk 0:00:51]} 25. Bxe2 {[%clk 0:00:17]}  Qf8 {[%clk 0:00:50]} 26. g3 {[%clk 0:00:17]}  Qf5 {[%clk 0:00:46]} 27. Rhe1 {[%clk 0:00:16]}  Ne4+ {[%clk 0:00:43]} 28. Ke3 {[%clk 0:00:15]}  Nf6 {[%clk 0:00:39]} 29. Bd3 {[%clk 0:00:15]}  Nxd5+ {[%clk 0:00:39]} 30. Kf3 {[%clk 0:00:13]}  Qh5+ {[%clk 0:00:38]} 31. Kg2 {[%clk 0:00:11]}  Ne3+ {[%clk 0:00:35]} 32. Kh1 {[%clk 0:00:08]}  Qf3+ {[%clk 0:00:34]} 33. Kg1 {[%clk 0:00:08]}  Qg2# {[%clk 0:00:35]} 0-1


[Site "https://www.chess.com"]

[Event "Titled Tuesday Blitz July 13 2021"]
[White "Belyakov, Bogdan"]
[Black "Sharapov, Evgeny"]
[WhiteFideId "24104795"]
[BlackFideId "14103133"]
[WhiteElo "2407"]
[BlackElo "2367"]
[Result "0-1"]
[Round "11"]
[TimeControl "180+1"]
[Date "2021.07.13"]
[WhiteClock "0:01:07"]
[BlackClock "0:01:53"]

1. e4 {[%clk 0:01:44]}  c6 {[%clk 0:02:57]} 2. d4 {[%clk 0:01:44]}  d5 {[%clk 0:02:57]} 3. e5 {[%clk 0:01:45]}  c5 {[%clk 0:02:57]} 4. Nf3 {[%clk 0:01:44]}  Nc6 {[%clk 0:02:56]} 5. c4 {[%clk 0:01:43]}  Bg4 {[%clk 0:02:44]} 6. cxd5 {[%clk 0:01:40]}  Bxf3 {[%clk 0:02:41]} 7. Nc3 {[%clk 0:01:40]}  Bxd1 {[%clk 0:02:40]} 8. dxc6 {[%clk 0:01:37]}  bxc6 {[%clk 0:02:39]} 9. Nxd1 {[%clk 0:01:36]}  cxd4 {[%clk 0:02:38]} 10. Bd3 {[%clk 0:01:35]}  e6 {[%clk 0:02:38]} 11. O-O {[%clk 0:01:35]}  Ne7 {[%clk 0:02:37]} 12. b3 {[%clk 0:01:32]}  Nd5 {[%clk 0:02:37]} 13. Nb2 {[%clk 0:01:30]}  Be7 {[%clk 0:02:34]} 14. Nc4 {[%clk 0:01:30]}  O-O {[%clk 0:02:34]} 15. Bd2 {[%clk 0:01:31]}  Nb6 {[%clk 0:02:29]} 16. Rac1 {[%clk 0:01:30]}  Nxc4 {[%clk 0:02:28]} 17. Rxc4 {[%clk 0:01:30]}  c5 {[%clk 0:02:28]} 18. f4 {[%clk 0:01:30]}  g6 {[%clk 0:02:27]} 19. Rfc1 {[%clk 0:01:28]}  a5 {[%clk 0:02:23]} 20. g3 {[%clk 0:01:23]}  Qb6 {[%clk 0:02:21]} 21. Be4 {[%clk 0:01:22]}  Ra7 {[%clk 0:02:16]} 22. R1c2 {[%clk 0:01:22]}  a4 {[%clk 0:02:13]} 23. bxa4 {[%clk 0:01:22]}  h5 {[%clk 0:02:02]} 24. a5 {[%clk 0:01:21]}  Rxa5 {[%clk 0:01:57]} 25. Bxa5 {[%clk 0:01:20]}  Qxa5 {[%clk 0:01:57]} 26. Kg2 {[%clk 0:01:14]}  Rb8 {[%clk 0:01:56]} 27. a4 {[%clk 0:01:08]}  Rb4 {[%clk 0:01:55]} 28. Bd3 {[%clk 0:01:07]}  Rxa4 {[%clk 0:01:53]} 0-1


[Site "https://www.chess.com"]

[Event "Titled Tuesday Blitz July 13 2021"]
[White "Boidiya, Sidi"]
[Black "Manukian, Artak"]
[WhiteFideId "19600100"]
[BlackFideId "13301373"]
[WhiteElo "2113"]
[BlackElo "2381"]
[Result "0-1"]
[Round "11"]
[TimeControl "180+1"]
[Date "2021.07.13"]
[WhiteClock "0:00:02"]
[BlackClock "0:00:23"]

1. e4 {[%clk 0:03:00]}  c6 {[%clk 0:02:54]} 2. d4 {[%clk 0:03:00]}  d5 {[%clk 0:02:55]} 3. Nd2 {[%clk 0:03:00]}  dxe4 {[%clk 0:02:56]} 4. Nxe4 {[%clk 0:03:00]}  Nf6 {[%clk 0:02:57]} 5. Ng5 {[%clk 0:02:59]}  Bg4 {[%clk 0:02:56]} 6. N1f3 {[%clk 0:02:53]}  e6 {[%clk 0:02:55]} 7. h3 {[%clk 0:02:41]}  Bh5 {[%clk 0:02:54]} 8. g4 {[%clk 0:02:39]}  Bg6 {[%clk 0:02:54]} 9. Ne5 {[%clk 0:02:37]}  Nbd7 {[%clk 0:02:48]} 10. Nxg6 {[%clk 0:02:32]}  hxg6 {[%clk 0:02:48]} 11. Bd3 {[%clk 0:02:32]}  Qc7 {[%clk 0:02:23]} 12. Qe2 {[%clk 0:02:30]}  Bd6 {[%clk 0:02:19]} 13. Bxg6 {[%clk 0:02:13]}  fxg6 {[%clk 0:02:12]} 14. Nxe6 {[%clk 0:02:13]}  Qa5+ {[%clk 0:02:07]} 15. Bd2 {[%clk 0:02:09]}  Bb4 {[%clk 0:02:06]} 16. c3 {[%clk 0:01:57]}  Kf7 {[%clk 0:02:03]} 17. Ng5+ {[%clk 0:01:48]}  Kf8 {[%clk 0:01:58]} 18. cxb4 {[%clk 0:01:34]}  Qd5 {[%clk 0:01:57]} 19. O-O-O {[%clk 0:01:27]}  Qxa2 {[%clk 0:01:55]} 20. Ne6+ {[%clk 0:01:23]}  Kf7 {[%clk 0:01:54]} 21. Ng5+ {[%clk 0:01:10]}  Kf8 {[%clk 0:01:53]} 22. Bc3 {[%clk 0:00:45]}  Re8 {[%clk 0:01:43]} 23. Qc2 {[%clk 0:00:42]}  Nb6 {[%clk 0:01:30]} 24. Rhe1 {[%clk 0:00:35]}  Na4 {[%clk 0:01:28]} 25. Qxg6 {[%clk 0:00:24]}  Nxc3 {[%clk 0:01:13]} 26. bxc3 {[%clk 0:00:20]}  Qa1+ {[%clk 0:01:12]} 27. Kd2 {[%clk 0:00:19]}  Qa2+ {[%clk 0:01:08]} 28. Qc2 {[%clk 0:00:19]}  Qc4 {[%clk 0:01:00]} 29. Rxe8+ {[%clk 0:00:16]}  Kxe8 {[%clk 0:01:00]} 30. Re1+ {[%clk 0:00:16]}  Kd8 {[%clk 0:01:00]} 31. Qf5 {[%clk 0:00:14]}  Qa2+ {[%clk 0:00:56]} 32. Qc2 {[%clk 0:00:14]}  Qd5 {[%clk 0:00:55]} 33. Ne6+ {[%clk 0:00:14]}  Kc8 {[%clk 0:00:54]} 34. Qf5 {[%clk 0:00:13]}  Qa2+ {[%clk 0:00:54]} 35. Kd3 {[%clk 0:00:13]}  Qa6+ {[%clk 0:00:52]} 36. Kd2 {[%clk 0:00:11]}  Qa2+ {[%clk 0:00:48]} 37. Qc2 {[%clk 0:00:10]}  Qc4 {[%clk 0:00:40]} 38. Nxg7 {[%clk 0:00:09]}  Kb8 {[%clk 0:00:36]} 39. Re3 {[%clk 0:00:06]}  Nd5 {[%clk 0:00:35]} 40. Rg3 {[%clk 0:00:05]}  Nf4 {[%clk 0:00:32]} 41. Qe4 {[%clk 0:00:03]}  Qa2+ {[%clk 0:00:29]} 42. Ke3 {[%clk 0:00:03]}  Nd5+ {[%clk 0:00:29]} 43. Kf3 {[%clk 0:00:03]}  Rf8+ {[%clk 0:00:28]} 44. Kg2 {[%clk 0:00:03]}  Qxf2+ {[%clk 0:00:23]} 45. Kh1 {[%clk 0:00:02]}  Qf1+ {[%clk 0:00:23]} 46. Rg1 {[%clk 0:00:02]}  Qxh3# {[%clk 0:00:23]} 0-1


[Site "https://www.chess.com"]

[Event "Titled Tuesday Blitz July 13 2021"]
[White "Daianu, Cristian-Clement"]
[Black "Rodchenkov, Vitaly"]
[WhiteFideId "1208926"]
[BlackFideId "4152964"]
[WhiteElo "2133"]
[BlackElo "2337"]
[Result "1-0"]
[Round "11"]
[TimeControl "180+1"]
[Date "2021.07.13"]
[WhiteClock "0:01:25"]
[BlackClock "0:01:48"]

1. e4 {[%clk 0:03:00]}  d5 {[%clk 0:03:00]} 2. exd5 {[%clk 0:03:00]}  Qxd5 {[%clk 0:03:00]} 3. Nf3 {[%clk 0:03:01]}  Bg4 {[%clk 0:02:59]} 4. Be2 {[%clk 0:03:01]}  Nc6 {[%clk 0:02:59]} 5. d4 {[%clk 0:02:58]}  O-O-O {[%clk 0:03:00]} 6. Be3 {[%clk 0:02:58]}  e5 {[%clk 0:02:55]} 7. c4 {[%clk 0:02:57]}  Qa5+ {[%clk 0:02:55]} 8. Bd2 {[%clk 0:02:57]}  Bb4 {[%clk 0:02:55]} 9. d5 {[%clk 0:02:57]}  Bxf3 {[%clk 0:02:54]} 10. Bxf3 {[%clk 0:02:56]}  Nd4 {[%clk 0:02:54]} 11. a3 {[%clk 0:02:53]}  Bxd2+ {[%clk 0:02:37]} 12. Nxd2 {[%clk 0:02:54]}  f5 {[%clk 0:02:32]} 13. O-O {[%clk 0:02:36]}  Nf6 {[%clk 0:02:20]} 14. Re1 {[%clk 0:02:30]}  e4 {[%clk 0:02:19]} 15. Be2 {[%clk 0:02:30]}  c6 {[%clk 0:02:10]} 16. b4 {[%clk 0:02:29]}  Qc7 {[%clk 0:02:10]} 17. dxc6 {[%clk 0:02:20]}  Nxc6 {[%clk 0:02:09]} 18. Qc2 {[%clk 0:02:11]}  Nd4 {[%clk 0:02:08]} 19. Qc3 {[%clk 0:02:09]}  Nxe2+ {[%clk 0:02:06]} 20. Rxe2 {[%clk 0:02:09]}  Rd3 {[%clk 0:02:06]} 21. Qc2 {[%clk 0:02:04]}  Ng4 {[%clk 0:02:06]} 22. Nf1 {[%clk 0:02:03]}  Rhd8 {[%clk 0:02:06]} 23. h3 {[%clk 0:02:00]}  Ne5 {[%clk 0:02:06]} 24. c5 {[%clk 0:01:55]}  Kb8 {[%clk 0:02:05]} 25. Rc1 {[%clk 0:01:43]}  g5 {[%clk 0:02:04]} 26. b5 {[%clk 0:01:42]}  h5 {[%clk 0:01:47]} 27. a4 {[%clk 0:01:32]}  h4 {[%clk 0:01:47]} 28. a5 {[%clk 0:01:24]}  g4 {[%clk 0:01:47]} 29. b6 {[%clk 0:01:25]}  a6 {[%clk 0:01:48]} 30. bxc7+ {[%clk 0:01:25]} 1-0


[Site "https://www.chess.com"]